bitfinex/quotes_ETHUSD_20260208
["timestamp","ask_amount","ask_price","bid_price","bid_amount"]
[1770516358600,1.19223615,2096.9,2096.2,1.21457097]
[1770516359526,1.19223615,2096.9,2096.2,1.21557097]
[1770516359819,0.002,2096.3,2096.2,1.21557097]
[1770516360026,0.002,2096.5,2096.3,1.21457097]
[1770516360604,0.14268484,2097.1,2096.5,1.21457097]
[1770516360605,1.19413346,2097.1,2096.5,1.21457097]
[1770516361023,0.002,2097.1,2096.5,1.21457097]
[1770516363136,0.002,2097.1,2096.6,1.21457097]
[1770516365216,0.002,2097.1,2096.5,2.40699602]
[1770516366126,0.002,2097.1,2096.6,2.39160553]
[1770516366328,0.002,2097.1,2096.7,1.19923235]
[1770516367216,0.002,2097.1,2096.9,1.19923235]
[1770516368208,0.002,2097.1,2096.7,1.19923235]
[1770516368406,0.002,2097.1,2096.7,2.39158155]
[1770516368605,0.51708068,2097.4,2096.7,2.39158155]
[1770516369151,1.1921793,2097.0,2096.3,1.19256986]
[1770516369452,5.29199634,2097.1,2096.5,1.19923235]
[1770516371829,5.32417969,2097.2,2096.7,0.001]
[1770516371830,1.74794663,2097.2,2096.7,0.001]
[1770516372029,0.002,2096.9,2096.7,1.20023235]
[1770516372817,0.002,2096.9,2096.7,0.001]
[1770516375740,0.002,2096.9,2096.7,1.13960608]
[1770516376738,0.002,2096.9,2096.8,1.13860608]
[1770516386837,0.002,2096.9,2096.8,0.001]
[1770516398948,0.5322626,2096.9,2096.5,0.001]
[1770516399132,0.57054744,2096.9,2096.5,0.001]
[1770516399544,0.03828484,2096.3,2095.8,0.001]
[1770516399757,0.03828484,2096.6,2095.9,0.001]
[1770516400057,0.56787766,2096.6,2096.0,1.13183444]
[1770516400437,1.19246362,2096.5,2095.9,0.001]
[1770516400769,1.19246362,2096.5,2095.9,0.002]
[1770516400770,1.72205644,2096.5,2095.9,0.002]
[1770516400921,0.52994745,2096.4,2095.9,0.002]
[1770516401125,0.52994745,2096.2,2095.9,0.001]
[1770516401642,0.52994745,2096.2,2095.7,0.001]
[1770516401830,0.52994745,2096.2,2095.8,0.001]
[1770516402049,0.52994745,2096.2,2095.7,0.002]
[1770516402542,1.19261309,2096.3,2095.8,1.13283444]
[1770516404030,1.76346711,2096.9,2096.0,1.13183444]
[1770516404355,1.23255927,2096.9,2096.0,1.13183444]
[1770516404563,1.19427443,2096.9,2096.2,1.13183444]
[1770516406839,0.04028484,2096.9,2096.2,1.13183444]
[1770516408037,0.53213613,2096.8,2096.3,0.001]
[1770516408238,0.53213613,2096.8,2096.1,1.13183444]
[1770516409276,1.19234988,2096.7,2096.2,0.001]
[1770516410448,5.29345668,2096.7,2096.2,0.001]
[1770516410846,0.57129828,2096.6,2096.2,0.001]
[1770516411356,1.19246362,2096.5,2096.4,0.001]
[1770516411556,1.19246362,2096.5,2096.2,0.001]
[1770516412638,5.82718172,2096.5,2096.1,0.001]
[1770516412862,5.82718172,2096.5,2096.1,0.002]
[1770516413446,8.91079117,2096.9,2096.2,1.13183444]
[1770516413447,0.002,2096.9,2096.2,1.13183444]
[1770516413656,0.002,2097.1,2096.5,1.13183444]
[1770516414457,0.002,2097.1,2096.5,2.32428615]
[1770516417451,0.002,2097.1,2096.5,1.13183444]
[1770516419064,0.002,2097.1,2096.5,2.32429787]
[1770516419270,4.1031068,2097.1,2096.5,1.13183444]
[1770516419569,4.1031068,2097.1,2096.3,4.77026266]
[1770516419570,0.57401977,2097.0,2096.3,1.13183444]
[1770516420148,0.61264722,2096.9,2096.3,1.13183444]
[1770516421784,1.19229301,2096.8,2096.3,1.13183444]
[1770516421976,1.76732076,2096.8,2096.1,1.13283444]
[1770516422167,0.57502775,2096.7,2096.1,0.001]
[1770516422551,1.19229301,2096.8,2096.1,0.001]
[1770516422878,1.19229301,2096.8,2096.1,1.13283444]
[1770516423050,1.76766912,2096.8,2096.1,1.13283444]
[1770516423252,1.76766912,2096.8,2096.4,0.001]
[1770516423452,0.002,2096.7,2096.4,0.001]
[1770516425974,0.002,2096.7,2096.4,1.17489723]
[1770516427569,0.002,2096.7,2096.4,0.001]
[1770516429873,0.002,2096.7,2096.5,1.17389723]
[1770516431874,0.002,2096.7,2096.6,1.17389723]
[1770516435495,0.002,2096.7,2096.6,1.17489723]
[1770516436094,0.002,2096.7,2096.6,0.001]
[1770516436670,0.002,2096.7,2096.6,1.17280929]
[1770516440497,0.002,2096.7,2096.6,2.36521604]
[1770516441300,0.002,2096.9,2096.7,1.17180929]
[1770516441494,0.002,2097.1,2096.9,1.17180929]
[1770516444525,0.002,2097.1,2097.0,1.17180929]
[1770516444810,0.002,2097.1,2096.7,1.17180929]
[1770516447101,0.002,2097.1,2096.8,0.001]
[1770516447408,0.002,2096.9,2096.8,0.001]
[1770516448078,0.002,2096.9,2096.8,1.17280929]
[1770516449904,0.002,2096.9,2096.8,0.001]
[1770516450110,0.002,2096.9,2096.6,1.17280929]
[1770516455894,0.002,2096.9,2096.6,0.001]
[1770516458016,0.002,2096.9,2096.6,1.19946296]
[1770516458190,0.002,2096.9,2096.6,1.24715923]
[1770516459708,0.002,2096.9,2096.7,1.19234988]
[1770516459916,0.002,2096.9,2096.8,1.19946296]
[1770516460293,0.002,2096.9,2096.8,0.001]
[1770516461831,0.002,2097.1,2096.9,1.19846296]
[1770516462195,0.002,2097.1,2096.8,0.001]
[1770516462995,0.002,2097.1,2096.8,1.19946296]
[1770516463322,0.002,2097.1,2096.9,1.19846296]
[1770516463493,0.002,2097.1,2096.9,1.2461524]
[1770516463687,0.002,2097.1,2096.9,1.19846296]
[1770516463907,0.002,2097.1,2096.8,1.19946296]
[1770516466423,0.002,2097.1,2096.8,0.001]
[1770516469011,0.002,2097.1,2096.8,1.19946296]
[1770516470423,0.002,2097.1,2096.8,0.001]
[1770516472308,0.002,2096.9,2096.8,0.001]
[1770516482745,0.002,2096.9,2096.8,1.19946296]
[1770516484951,0.5913614,2096.9,2096.5,0.001]
[1770516485644,0.002,2096.9,2096.5,0.001]
[1770516486052,0.59151549,2096.9,2096.5,0.001]
[1770516486930,1.8220595,2096.9,2096.5,0.001]
[1770516490636,0.002,2096.9,2096.5,1.16610616]
[1770516491648,0.002,2096.9,2096.6,1.16510616]
[1770516494149,0.002,2096.9,2096.5,0.001]
[1770516494649,4.69444204,2096.9,2096.5,0.001]
[1770516494854,0.03828484,2096.8,2096.5,0.001]
[1770516495755,0.002,2096.7,2096.5,0.001]
[1770516496258,0.59230374,2096.7,2096.1,0.001]
[1770516496444,0.59030374,2096.6,2096.1,0.001]
[1770516499058,1.78274552,2096.6,2096.1,0.001]
[1770516499860,1.19244178,2096.6,2096.1,0.001]
[1770516500068,1.19244178,2096.6,2096.1,1.18593036]
[1770516501354,4.77140985,2096.7,2096.1,1.18593036]
[1770516501355,0.03828484,2096.5,2096.1,1.18593036]
[1770516501562,0.03828484,2096.5,2096.1,0.001]
[1770516503349,1.23077794,2096.5,2096.1,0.001]
[1770516503951,0.03828484,2096.5,2096.1,0.001]
[1770516504266,1.19438363,2096.7,2096.1,1.18593036]
[1770516507880,1.19438363,2096.7,2096.3,0.001]
[1770516508173,0.002,2096.5,2096.3,0.001]
[1770516512183,0.002,2096.5,2096.3,1.18593036]
[1770516516674,0.002,2096.5,2096.3,0.001]
[1770516516869,0.002,2096.5,2096.1,0.001]
[1770516516870,0.03828484,2096.4,2096.1,0.001]
[1770516517177,0.04028484,2096.5,2096.1,1.232122]
[1770516519392,1.23280411,2096.5,2096.1,1.232122]
[1770516520908,1.23280411,2096.5,2096.3,0.001]
[1770516524011,0.002,2096.5,2096.3,1.232122]
[1770516528701,0.002,2096.5,2096.4,1.231122]
[1770516531586,0.002,2096.7,2096.5,1.231122]
[1770516533100,0.002,2096.7,2096.5,1.232122]
[1770516533420,0.002,2096.9,2096.6,1.231122]
[1770516533715,0.002,2096.9,2096.7,1.231122]
[1770516537695,0.002,2096.9,2096.8,1.231122]
[1770516538740,0.002,2096.9,2096.6,1.19236789]
[1770516538741,0.002,2096.9,2096.5,1.19342267]
[1770516539039,0.002,2096.9,2096.7,1.231122]
[1770516539536,0.002,2096.9,2096.8,1.231122]
[1770516549130,0.002,2096.9,2096.6,0.001]
[1770516549335,0.002,2096.9,2096.6,1.19169442]
[1770516549535,0.002,2096.9,2096.6,2.38409816]
[1770516550052,0.002,2096.9,2096.6,1.19169442]
[1770516550651,0.002,2096.9,2096.6,0.001]
[1770516553853,0.002,2096.9,2096.6,1.18913545]
[1770516554149,0.002,2096.9,2096.7,1.18813545]
[1770516556445,0.002,2097.2,2096.7,1.18813545]
[1770516556446,0.002,2097.2,2096.9,1.18813545]
[1770516556645,0.002,2097.4,2097.1,1.18813545]
[1770516557428,0.002,2097.5,2097.1,1.18813545]
[1770516558032,0.002,2097.8,2097.1,1.18813545]
[1770516558239,0.004,2097.7,2097.1,1.18813545]
[1770516558438,0.004,2097.7,2097.3,1.18813545]
[1770516559475,0.002,2097.8,2097.2,1.19206561]
[1770516559639,0.002,2097.8,2097.3,1.18813545]
[1770516562370,0.002,2097.8,2097.3,2.38014264]
[1770516564971,0.002,2097.8,2097.3,2.38013868]
[1770516565340,0.002,2097.8,2097.4,1.18813545]
[1770516565834,0.002,2097.8,2097.4,2.38008118]
[1770516566263,0.002,2097.8,2097.5,1.18813545]
[1770516566459,0.002,2097.8,2097.4,1.18813545]
[1770516568963,0.002,2097.8,2097.5,1.18813545]
[1770516570644,0.002,2097.8,2097.5,2.38001419]
[1770516570868,0.002,2097.8,2097.6,1.18813545]
[1770516572063,1.13182309,2098.2,2097.6,1.18813545]
[1770516573984,1.19142293,2098.4,2097.7,1.18813545]
[1770516574771,1.19136218,2098.5,2097.7,1.18813545]
[1770516574978,1.22964702,2098.5,2097.7,1.18813545]
[1770516575177,0.39184388,2098.6,2098.0,4.1014536]
[1770516575479,0.39184388,2098.6,2097.6,5.29327469]
[1770516575480,0.39184388,2098.6,2098.1,1.18813545]
[1770516575849,0.39184388,2098.6,2098.2,1.19149747]
[1770516576174,0.39184388,2098.6,2098.3,1.22286886]
[1770516577353,0.39184388,2098.6,2098.1,2.41438222]
[1770516577750,0.39184388,2098.6,2098.1,1.19151336]
[1770516577954,0.39184388,2098.6,2098.2,1.22286886]
[1770516578286,0.04028484,2098.7,2098.5,1.22286886]
[1770516578287,0.002,2098.7,2098.5,1.22286886]
[1770516578689,1.19085994,2099.4,2098.3,4.1014536]
[1770516578690,1.19085994,2099.4,2098.4,1.22286886]
[1770516579482,1.78951541,2099.5,2098.4,1.22286886]
[1770516579682,5.89096901,2099.5,2098.4,1.22286886]
[1770516580090,5.89096901,2099.5,2098.6,1.22286886]
[1770516580291,1.19080113,2099.5,2098.6,1.22286886]
[1770516581090,1.79153249,2099.6,2098.6,1.22286886]
[1770516581324,1.19067645,2099.7,2098.8,1.22286886]
[1770516582303,0.60086181,2099.8,2099.0,1.22286886]
[1770516583197,1.22885069,2099.9,2099.0,1.22286886]
[1770516583824,0.002,2099.6,2099.0,1.22286886]
[1770516584016,1.22885069,2099.9,2098.9,1.1911001]
[1770516584200,1.22885069,2099.9,2099.2,1.22286886]
[1770516584525,0.002,2099.8,2099.2,1.22286886]
[1770516585228,4.70243792,2099.6,2098.8,1.22286886]
[1770516585394,4.70243792,2099.6,2098.9,1.22286886]
[1770516585921,4.74276494,2099.8,2098.9,1.22286886]
[1770516586089,1.19064628,2099.7,2098.9,1.22286886]
[1770516586290,1.19064628,2099.7,2099.0,1.22286886]
[1770516587727,0.03828484,2099.5,2098.8,1.22286886]
[1770516588015,4.70252881,2099.6,2098.9,1.22286886]
[1770516588214,5.89325564,2099.6,2098.8,1.22286886]
[1770516588415,5.89325564,2099.6,2098.9,1.22286886]
[1770516588790,5.89325564,2099.6,2098.1,1.22286886]
[1770516588791,0.63940456,2099.5,2098.1,1.22286886]
[1770516588999,0.03828484,2099.5,2098.7,1.22286886]
[1770516590107,0.03828484,2099.5,2098.8,1.22286886]
[1770516590108,1.22907533,2099.5,2098.8,1.22286886]
[1770516591001,4.1014536,2099.4,2098.8,1.22286886]
[1770516592325,1.19087314,2099.3,2098.8,1.22286886]
[1770516593124,1.19087314,2099.3,2098.6,2.41413489]
[1770516593337,1.19087314,2099.3,2098.7,1.22286886]
[1770516596334,4.74109428,2099.2,2098.5,1.22286886]
[1770516596528,1.19098661,2099.1,2098.5,1.22286886]
[1770516597206,1.19096703,2099.2,2098.9,0.001]
[1770516598633,4.76349392,2099.3,2098.9,0.001]
[1770516600303,4.76349392,2099.3,2098.3,1.19140756]
[1770516600304,4.1014536,2099.0,2098.3,1.19140756]
[1770516600509,1.22934064,2099.0,2098.4,1.22286886]
[1770516601741,4.13973844,2098.7,2098.2,1.22286886]
[1770516601921,0.03828484,2098.4,2097.9,0.001]
[1770516602116,0.03828484,2098.6,2098.0,1.22286886]
[1770516602633,1.22956015,2098.6,2098.0,1.22286886]
[1770516603025,1.22938494,2099.0,2098.1,1.22286886]
[1770516603332,1.19092987,2099.2,2098.2,1.22286886]
[1770516605223,0.03828484,2099.0,2098.3,1.22286886]
[1770516607110,1.1911001,2098.9,2098.3,1.22286886]
[1770516608944,1.19105555,2099.0,2098.4,1.17306326]
[1770516609127,1.19092987,2099.2,2098.4,1.17306326]
[1770516610151,1.19064628,2099.7,2098.7,1.17306326]
[1770516610324,1.19064628,2099.7,2098.9,1.17306326]
[1770516610517,1.19064628,2099.7,2099.0,1.17306326]
[1770516611047,0.002,2099.2,2099.0,1.17306326]
[1770516611250,0.002,2099.2,2098.8,4.1014536]
[1770516611251,0.002,2099.2,2099.1,1.17306326]
[1770516611745,1.19259273,2099.8,2099.1,1.17306326]
[1770516612127,0.002,2099.8,2099.1,1.17306326]
[1770516613442,0.002,2099.8,2099.2,1.16243492]
[1770516614020,0.03828484,2099.7,2099.2,1.16243492]
[1770516615927,1.83196194,2099.7,2099.0,1.16243492]
[1770516616122,1.22893347,2099.7,2099.1,1.16243492]
[1770516616732,1.19262498,2099.8,2099.2,1.16243492]
[1770516617654,0.002,2099.8,2099.2,1.16243492]
[1770516620857,0.002,2099.8,2099.3,1.16243492]
[1770516621943,0.002,2099.8,2099.5,1.16243492]
[1770516623163,0.002,2099.6,2099.5,1.16243492]
[1770516623329,0.002,2099.8,2099.5,1.16243492]
[1770516625037,0.002,2099.8,2099.6,1.16243492]
[1770516625936,0.006,2100.2,2099.6,1.16243492]
[1770516626262,0.36207084,2100.7,2099.7,1.16243492]
[1770516626473,1.19296699,2100.9,2099.7,1.16243492]
[1770516627129,0.003,2100.9,2099.8,1.19058957]
[1770516627334,0.003,2101.1,2100.6,1.16243492]
[1770516627568,0.003,2101.1,2100.9,1.16243492]
[1770516628455,0.1384165,2101.2,2100.3,1.16243492]
[1770516628762,0.1384165,2101.2,2100.6,1.16243492]
[1770516628966,1.32821866,2101.2,2100.6,1.16243492]
[1770516629168,1.32821826,2101.2,2100.6,1.16243492]
[1770516630246,1.32821826,2101.2,2100.0,4.76176429]
[1770516630449,0.77482193,2101.1,2100.2,2.35278166]
[1770516630658,1.32821826,2101.2,2100.2,1.16243492]
[1770516630963,1.32821826,2101.2,2100.3,1.16243492]
[1770516631343,2.10343949,2101.2,2100.3,1.16243492]
[1770516631546,0.77522123,2101.1,2100.3,1.16243492]
[1770516632346,1.32821826,2101.2,2100.4,1.16243492]
[1770516633068,2.10422676,2101.2,2100.4,1.16243492]
[1770516633242,2.10422676,2101.2,2100.2,1.16243492]
[1770516633443,0.7760085,2101.1,2100.2,1.16243492]
[1770516633665,0.81429334,2101.1,2100.2,1.16243492]
[1770516633865,0.7760085,2101.1,2100.2,1.16243492]
[1770516634451,0.7760085,2101.1,2100.2,2.35279325]
[1770516634770,0.7760085,2101.1,2100.2,1.16243492]
[1770516635373,1.18990956,2101.0,2100.2,1.16243492]
[1770516635747,1.18990956,2101.0,2100.2,2.35279747]
[1770516636361,1.18990956,2101.0,2100.2,1.16243492]
[1770516636556,0.002,2100.9,2100.2,1.16243492]
[1770516643557,0.002,2100.9,2100.3,1.23119682]
[1770516644979,0.002,2100.9,2100.1,1.19038951]
[1770516644980,0.75286036,2100.9,2100.1,1.23119682]
[1770516645566,1.19002284,2100.8,2100.1,1.23119682]
[1770516646675,1.19198781,2100.9,2100.2,1.23119682]
[1770516647676,0.002,2100.9,2100.2,1.23119682]
[1770516648895,0.002,2100.9,2100.3,1.23119682]
[1770516649480,0.002,2100.9,2100.3,1.23219682]
[1770516649682,0.002,2100.9,2100.5,1.23119682]
[1770516651780,0.002,2100.9,2100.7,1.23119682]
[1770516652179,0.01033499,2101.2,2100.7,1.23119682]
[1770516652566,0.01033499,2101.2,2100.6,1.19013615]
[1770516652567,0.003,2101.3,2100.6,1.19013615]
[1770516652889,0.003,2101.3,2100.8,1.23119682]
[1770516653991,0.0384759,2101.4,2101.0,1.23119682]
[1770516654197,0.34044754,2101.8,2101.0,1.23119682]
[1770516656204,0.34044754,2101.8,2101.2,1.23119682]
[1770516657986,0.34044754,2101.8,2101.4,1.23119682]
[1770516660192,0.34044754,2101.8,2101.0,1.23119682]
[1770516660193,1.52992487,2101.8,2101.0,1.23119682]
[1770516661515,0.34044754,2101.8,2101.5,1.23119682]
[1770516661815,0.34044754,2101.8,2101.3,1.23119682]
[1770516663087,0.002,2101.6,2101.3,1.23119682]
[1770516663995,0.002,2101.6,2101.1,1.23119682]
[1770516664402,0.002,2101.6,2100.9,2.42113321]
[1770516664628,0.002,2101.6,2100.9,2.42116267]
[1770516664986,0.002,2101.6,2101.0,1.23119682]
[1770516665814,0.72060368,2101.6,2100.8,1.1459804]
[1770516666013,0.72060368,2101.6,2100.8,2.33600321]
[1770516666215,1.1915801,2101.6,2100.9,2.33594287]
[1770516666604,0.002,2101.6,2101.0,1.1459804]
[1770516668324,0.002,2101.6,2100.7,1.19002408]
[1770516668500,0.002,2101.6,2101.0,1.18990183]
[1770516669122,0.002,2101.6,2101.1,1.1459804]
[1770516672151,0.002,2101.6,2101.1,1.18981023]
[1770516672422,0.002,2101.6,2101.2,1.1459804]
[1770516674613,0.002,2101.6,2101.4,1.12749534]
[1770516676827,0.002,2101.6,2101.2,2.31725297]
[1770516677915,0.002,2101.6,2101.2,1.12749534]
[1770516678114,0.002,2101.6,2101.1,0.001]
[1770516678405,0.002,2101.6,2101.1,1.19084924]
[1770516678619,0.002,2101.6,2101.4,2.31712783]
[1770516678829,0.002,2101.6,2101.2,2.31725591]
[1770516679017,0.002,2101.6,2101.2,1.12749534]
[1770516679220,0.002,2101.6,2101.1,0.001]
[1770516679529,0.34044754,2101.8,2101.5,1.12749534]
[1770516680916,0.34044754,2101.8,2101.5,2.31709639]
[1770516682208,0.34044754,2101.8,2101.5,1.12749534]
[1770516682414,0.34044754,2101.8,2101.5,1.18961646]
[1770516683108,0.34044754,2101.8,2101.4,2.3171784]
[1770516684035,0.34044754,2101.8,2101.5,1.12749534]
[1770516684331,1e-08,2101.8,2101.5,1.12749534]
[1770516685546,1e-08,2101.8,2101.5,2.31707943]
[1770516686340,1e-08,2101.8,2101.4,1.18965003]
[1770516686522,1e-08,2101.8,2101.5,1.18962502]
[1770516686842,1e-08,2101.8,2101.5,2.31712036]
[1770516687953,1e-08,2101.8,2101.6,1.12749534]
[1770516689222,1e-08,2101.8,2101.7,1.12849534]
[1770516689631,1e-08,2101.8,2101.7,0.001]
[1770516696745,1e-08,2101.8,2101.7,1.14034587]
[1770516696947,1e-08,2101.8,2101.7,2.32985912]
[1770516698758,1e-08,2101.8,2101.7,1.14034587]
[1770516700452,1e-08,2101.8,2101.7,2.32985912]
[1770516701343,1e-08,2101.8,2101.7,0.001]
[1770516701854,1e-08,2101.8,2101.7,1.14034587]
[1770516702249,1e-08,2101.8,2101.7,0.001]
[1770516703243,1e-08,2101.8,2101.7,2.32985912]
[1770516705243,1.18904525,2102.6,2101.8,1.13934587]
[1770516705443,1.85196253,2102.8,2101.9,2.32874593]
[1770516706161,0.66202986,2102.7,2101.9,2.32874593]
[1770516706358,0.66202986,2102.7,2101.9,1.13934587]
[1770516706944,0.66202986,2102.7,2101.7,1.1905053]
[1770516707164,0.66202986,2102.7,2101.8,1.18944513]
[1770516707463,1.84985109,2102.9,2102.2,1.13934587]
[1770516708154,1.84985109,2102.9,2102.0,1.13934587]
[1770516708464,1.18887122,2102.9,2102.0,1.13934587]
[1770516708657,1.84881027,2102.9,2102.0,1.13934587]
[1770516709559,1.84881027,2102.9,2102.1,2.32863277]
[1770516710362,2.17806292,2103.1,2102.2,1.13934587]
[1770516711037,0.33140473,2103.1,2102.2,1.13934587]
[1770516711637,0.33140473,2103.1,2102.4,1.13934587]
[1770516713576,0.33140473,2103.1,2102.5,1.13934587]
[1770516713577,1.52012709,2103.1,2102.5,1.13934587]
[1770516714073,0.33140473,2103.1,2102.5,1.13934587]
[1770516716152,0.33140473,2103.1,2102.5,2.32836896]
[1770516717453,0.33140473,2103.1,2102.6,1.13934587]
[1770516719474,0.33140473,2103.1,2102.6,2.32834408]
[1770516719662,0.33140473,2103.1,2102.6,1.13934587]
[1770516720485,1.52013895,2103.1,2102.4,1.13934587]
[1770516720781,0.64842245,2103.0,2102.3,1.13934587]
[1770516720956,1.52013895,2103.1,2102.3,1.13934587]
[1770516721159,0.64755211,2103.0,2102.3,1.13934587]
[1770516721566,0.68583695,2103.0,2102.1,2.32863054]
[1770516721764,0.68583695,2103.0,2102.2,1.13934587]
[1770516722475,1.83550893,2102.9,2102.2,1.13934587]
[1770516722680,0.64667447,2102.8,2102.1,1.13934587]
[1770516722864,1.18883446,2102.9,2102.1,1.13934587]
[1770516723277,1.83466408,2102.9,2102.1,2.32862985]
[1770516723476,1.83466408,2102.9,2102.1,1.13934587]
[1770516723678,0.64582962,2102.8,2102.1,1.13934587]
[1770516723989,1.18883446,2102.9,2102.2,2.32856078]
[1770516724158,1.83379014,2102.9,2102.2,1.13934587]
[1770516724790,1.83379014,2102.9,2102.0,1.14034587]
[1770516725086,0.64410933,2102.8,2102.0,1.14034587]
[1770516725753,1.18883446,2102.9,2102.0,1.14034587]
[1770516726786,1.18883446,2102.9,2102.1,1.1892869]
[1770516726966,1.18883446,2102.9,2102.2,1.12680279]
[1770516728087,0.64084818,2102.8,2102.0,1.12780279]
[1770516728291,0.002,2102.7,2102.0,2.31714079]
[1770516729191,0.002,2102.7,2102.0,0.001]
[1770516729192,0.64005064,2102.6,2102.0,0.001]
[1770516731167,1.82754371,2102.5,2102.0,0.001]
[1770516731497,0.63848307,2102.4,2102.0,0.001]
[1770516733270,1.82761163,2102.4,2102.0,0.001]
[1770516733700,1.1890992,2102.5,2102.0,0.001]
[1770516734466,1.18905177,2102.6,2102.0,1.08609699]
[1770516734671,1.82572104,2102.7,2102.0,1.08609699]
[1770516735285,1.19099695,2102.7,2102.0,1.08609699]
[1770516735506,0.63672409,2102.7,2102.0,1.08609699]
[1770516735805,0.63672409,2102.7,2102.0,0.001]
[1770516737496,1.18900409,2102.6,2102.0,0.001]
[1770516738694,1.82158757,2102.6,2102.0,0.001]
[1770516739000,0.63188153,2102.5,2102.0,0.001]
[1770516739777,1.8209547,2102.5,2102.0,0.001]
[1770516739977,0.03828484,2102.3,2101.7,0.001]
[1770516740288,0.63118913,2102.4,2101.7,1.08609699]
[1770516740493,1.18907317,2102.5,2101.7,1.08609699]
[1770516740998,1.82022029,2102.6,2101.8,1.08509699]
[1770516741172,1.190995,2102.7,2102.0,1.08609699]
[1770516741573,0.002,2102.7,2102.2,1.08509699]
[1770516741914,0.002,2102.7,2102.4,1.08509699]
[1770516742789,0.002,2102.7,2102.1,2.27433999]
[1770516743101,0.002,2102.7,2102.3,1.08509699]
[1770516743891,0.002,2102.7,2102.5,1.08509699]
[1770516745917,0.002,2102.7,2102.5,1.18902079]
[1770516746124,0.002,2102.7,2102.6,1.08509699]
[1770516747819,4.7525751,2104.2,2102.7,1.08509699]
[1770516748111,0.30173337,2104.2,2103.3,4.08005159]
[1770516748289,0.03828484,2104.0,2103.2,1.08509699]
[1770516748482,1.1414654,2104.0,2103.0,1.08509699]
[1770516748679,1.15637266,2103.9,2103.0,1.08509699]
[1770516748885,1.10318056,2103.6,2102.7,6.35405708]
[1770516749178,1.15637266,2103.9,2102.6,1.08509699]
[1770516749382,1.1414654,2103.6,2102.7,1.08509699]
[1770516749614,1.1414654,2103.6,2102.1,1.08509699]
[1770516749615,0.03828484,2103.1,2102.1,1.08509699]
[1770516749814,1.1414654,2103.3,2102.3,2.27426678]
[1770516750006,1.24185699,2103.2,2102.3,2.27426678]
[1770516750205,1.10318056,2103.0,2102.1,1.08509699]
[1770516751094,1.15637266,2102.9,2102.0,1.19030659]
[1770516751290,1.1414654,2102.8,2102.0,0.001]
[1770516751609,0.0531921,2102.9,2102.0,0.001]
[1770516751610,1.1414654,2102.7,2102.0,0.001]
[1770516751804,1.10318056,2102.7,2102.0,0.001]
[1770516752001,1.2805353,2102.6,2102.0,0.001]
[1770516752608,2.38371586,2102.6,2102.0,0.001]
[1770516754397,2.38371586,2102.6,2102.2,0.001]
[1770516755093,2.34543102,2102.6,2102.2,0.001]
[1770516755912,1.19092673,2102.8,2102.2,0.001]
[1770516756101,0.0531921,2102.7,2102.2,0.001]
[1770516756688,0.0531921,2102.7,2102.2,0.93886826]
[1770516756885,0.002,2102.8,2102.2,0.93886826]
[1770516757119,0.0551921,2102.8,2102.2,0.93886826]
[1770516757432,0.002,2102.8,2102.2,0.93886826]
[1770516758326,0.002,2102.8,2102.3,2.12704202]
[1770516758693,0.0551921,2102.8,2102.4,0.93786826]
[1770516760312,0.002,2102.8,2102.4,0.93786826]
[1770516760510,0.002,2102.8,2102.4,2.12698273]
[1770516761223,0.002,2102.8,2102.4,1.18911447]
[1770516762996,0.0531921,2103.1,2102.3,1.18917376]
[1770516763196,2.11895268,2103.2,2102.3,1.18917376]
[1770516763421,0.0531921,2103.1,2102.3,1.18917376]
[1770516764132,0.0531921,2103.1,2102.3,2.12704202]
[1770516764624,0.95491021,2103.1,2102.2,1.19020282]
[1770516765602,2.09049604,2103.0,2102.2,1.19020282]
[1770516766398,0.90171811,2103.0,2102.2,2.12807108]
[1770516766594,0.0531921,2102.9,2102.3,0.93786826]
[1770516767130,0.0531921,2102.9,2102.4,0.001]
[1770516767533,0.0531921,2102.9,2102.4,0.93886826]
[1770516767825,0.0531921,2102.9,2102.4,0.001]
[1770516768329,1.24203322,2102.9,2102.4,0.001]
[1770516768631,0.0531921,2102.9,2102.4,0.001]
[1770516769202,1.24202683,2102.9,2102.4,0.001]
[1770516769403,0.0531921,2102.9,2102.4,0.001]
[1770516769937,0.002,2103.3,2102.6,0.93786826]
[1770516770132,5.99694962,2103.2,2102.7,5.01630662]
[1770516770521,5.99694962,2103.2,2102.7,0.93786826]
[1770516771033,5.99694962,2103.2,2102.4,0.93886826]
[1770516771805,5.99694962,2103.2,2102.5,1.18906064]
[1770516774333,5.99694962,2103.2,2102.6,0.93786826]
[1770516776818,5.99694962,2103.2,2102.7,1.18894754]
[1770516779633,0.90171811,2103.1,2102.4,0.93886826]
[1770516779840,0.90171811,2103.1,2102.5,1.18903449]
[1770516780139,0.90171811,2103.1,2102.4,5.69529556]
[1770516780140,5.99694962,2103.0,2102.6,0.001]
[1770516780650,6.89866773,2103.0,2102.6,0.001]
[1770516780807,0.03828484,2102.9,2102.6,0.001]
[1770516781011,2.12886477,2102.9,2102.6,0.001]
[1770516781213,0.94000295,2102.9,2102.4,0.001]
[1770516781431,0.03828484,2102.6,2102.4,0.001]
[1770516781626,0.94000295,2102.6,2102.2,0.001]
[1770516781915,5.99494962,2102.5,2102.2,0.001]
[1770516782338,5.99494962,2102.4,2102.2,0.001]
[1770516782514,5.99494962,2102.5,2102.2,0.001]
[1770516782911,5.99494962,2102.4,2102.2,0.001]
[1770516783110,5.99494962,2102.5,2102.2,0.001]
[1770516783637,5.99494962,2102.4,2102.2,0.001]
[1770516783839,5.99494962,2102.5,2102.2,0.001]
[1770516784053,0.90171811,2102.4,2102.0,0.001]
[1770516784218,1.2272902,2102.6,2102.0,0.001]
[1770516784219,0.90171811,2102.3,2102.0,0.001]
[1770516784418,6.89666773,2102.5,2102.0,0.001]
[1770516784637,0.94000295,2102.3,2101.8,0.001]
[1770516785143,6.89666773,2102.2,2101.8,0.001]
[1770516785649,5.99494962,2102.1,2101.8,0.001]
[1770516786025,1.22730262,2102.6,2101.8,0.9294324]
[1770516786231,0.94102273,2102.4,2101.8,0.001]
[1770516787163,5.99494962,2102.3,2101.8,0.001]
[1770516787333,7.18412565,2102.3,2101.8,0.001]
[1770516787656,5.99494962,2102.3,2101.8,0.001]